Cogmind - Beta 16.1 @@@ ROGUE MODE // 2026.03.30 @ 01:02:33 Player: Xintrosi Result: Core destroyed Performance ------------- Evolutions (7) 3500 Regions Visited (22) 4400 Robots Destroyed (336) 1680 Value Destroyed (16658) 16658 Prototype IDs (36) 720 Alien Tech Used (4) 800 Bonus (16924) 16924 TOTAL SCORE: 44682 Bonus ------- High Alert Combat Kills 4078 Follower Combat Kills 2695 Entered Garrisons 600 Acquired ECA 300 Met Warlord at Base 500 MAIN.C Attacked Warlord 500 Warlord Defense Kills 472 Built Enhanced Grunts 300 A7 Reached Mainframe 300 Met R17 at Cetus 500 Used Core Reset Matrix 3000 Met R17 at Research 2000 Met Sigix 2000 Friendly Fire -321 Cogmind --------- Core Integrity 0/1300 Matter 220/300 Energy 596/649 System Corruption 5% Temperature Critical (529) Movement Walking (174) Location -3/Garrison Parts ------- > --- POWER (4) -------- Antimatter-Quantum Reactor > --- PROPULSION (6) --- Centrium-Siege Exoskeleton > --- UTILITY (7) ------ Armored Scrap Engine Improved Weapon Cycler Makeshift Light Armor Plating > --- WEAPON (4) ------- Heavy Disruptor Cannon Hvy. Laser Plasma Construct/C > --- INVENTORY (5) ---- Advanced Heat Sink Advanced Sensor Array Advanced Signal Interpreter Sigix Containment Pod Peak State ------------ > --- POWER ------------ Antimatter-Quantum Reactor > --- PROPULSION ------- Armored Heavy Treads Centrium-Siege Exoskeleton > --- UTILITY ---------- Armored Scrap Engine Advanced Cooling System Large Storage Unit Improved Phase Shifter Phase Armor > --- WEAPON ----------- Hardcell Cannon Thermoblaster Hvy. Laser Plasma Construct/C > --- INVENTORY -------- Advanced Heat Sink Advanced Heat Sink Improved Cooling System Machine Analyzer Enhanced Optical Array Advanced Sensor Array Advanced Signal Interpreter Encrypted Comm Array Improved Weapon Cycler Powered Armor Improved Hacking Suite Terrabomb Sigix Containment Pod [Rating: 164] Favorites ----------- Power Constructs Engine Improved Deuterium Engine Power Core Light Nuclear Core Reactor Constructs Propulsion Light Treads Treads Light Treads Leg Constructs Wheel Wheel Hover Unit Improved Airjet Flight Unit Flight Unit Utility Large Storage Unit Device Armored Scrap Engine Storage Large Storage Unit Processor Advanced Targeting Computer Protection Gun Armor Artifact Phase Armor Weapon Constructs Energy Gun Constructs Energy Cannon Constructs Ballistic Gun Improved Assault Rifle Ballistic Cannon Hardcell Cannon Launcher Thermoblaster Special Weapon Advanced Remote Datajack Impact Weapon Heavy Mace Build | -11 -10 -10 -8 -8 -8 -7 -7 -7 -5 -5 -5 -5 -5 -5 -4 -4 -4 -4 -3 -3 -3 -3 ------- Run | Yrd Mat Sub Mat Gar Mat Fac Sto Rec Fac Ext Cet Arc Hub Gar Fac Upp Upp War Pro Res Qua Gar Slots Evolved 14 | . . . 4 . . 2 . . 4 . . . . . 2 . . . . 2 . . Power 3 | . . . . . . . . . 1 . . . . . 1 . . . . 1 . . Propulsion 4 | . . . 1 . . 1 . . 1 . . . . . 1 . . . . . . . Utility 5 | . . . 2 . . 1 . . 1 . . . . . . . . . . 1 . . Weapon 2 | . . . 1 . . . . . 1 . . . . . . . . . . . . . Parts Attached 168 | 7 1 7 26 17 10 13 20 4 7 10 3 . . 4 1 2 5 7 5 12 7 . Power 17 | 1 . 1 2 5 3 1 2 . 1 . . . . . . . . . 1 . . . Engine 7 | 1 . 1 1 . 1 1 2 . . . . . . . . . . . . . . . Core 9 | . . . 1 5 2 . . . 1 . . . . . . . . . . . . . Reactor 1 | . . . . . . . . . . . . . . . . . . . 1 . . . Propulsion 40 | 2 . . 12 8 3 4 9 . . . . . . . . . 1 . . . 1 . Treads 23 | 2 . . 3 5 3 4 5 . . . . . . . . . . . . . 1 . Leg 5 | . . . 2 3 . . . . . . . . . . . . . . . . . . Wheel 6 | . . . 5 . . . . . . . . . . . . . 1 . . . . . Hover 5 | . . . 1 . . . 4 . . . . . . . . . . . . . . . Flight 1 | . . . 1 . . . . . . . . . . . . . . . . . . . Utility 68 | 2 1 2 6 . 1 6 5 2 5 8 3 . . 4 1 1 4 3 2 9 3 . Device 33 | 1 . 1 1 . . 3 1 2 4 5 1 . . 3 1 1 1 2 1 5 . . Storage 4 | 1 1 . 1 . . . . . . . . . . . . . . . . . 1 . Processor 2 | . . . . . . 1 . . . 1 . . . . . . . . . . . . Hackware . | . . . . . . . . . . . . . . . . . . . . . . . Protection 28 | . . 1 4 . 1 2 4 . 1 2 2 . . 1 . . 3 1 1 4 1 . Artifact 1 | . . . . . . . . . . . . . . . . . . . . . 1 . Weapon 43 | 2 . 4 6 4 3 2 4 2 1 2 . . . . . 1 . 4 2 3 3 . Energy Gun 12 | . . . 1 . 1 . 2 1 . . . . . . . . . 2 2 2 1 . Energy Cannon 4 | . . . . . . . 2 1 . . . . . . . . . . . . 1 . Ballistic Gun 18 | 2 . 4 5 3 2 1 . . . . . . . . . . . 1 . . . . Ballistic Cannon 1 | . . . . . . . . . . . . . . . . . . . . 1 . . Launcher 4 | . . . . . . 1 . . 1 1 . . . . . . . 1 . . . . Special Weapon 1 | . . . . . . . . . . . . . . . . . . . . . 1 . Impact Weapon 3 | . . . . 1 . . . . . 1 . . . . . 1 . . . . . . Slashing Weapon . | . . . . . . . . . . . . . . . . . . . . . . . Piercing Weapon . | . . . . . . . . . . . . . . . . . . . . . . . Special Melee Weapon . | . . . . . . . . . . . . . . . . . . . . . . . Unidentified Prototypes 15 | . . . 2 . 2 . 3 1 . . 1 . . . . . . 1 1 1 3 . Parts Lost 60 | . . 1 3 2 7 2 8 2 4 5 . . . . . 4 8 1 3 1 6 3 Power 4 | . . . . . 1 . . . 1 . . . . . . . 1 . 1 . . . Propulsion 13 | . . . 1 1 1 . 6 . . 1 . . . . . . 3 . . . . . Utility 26 | . . . 2 . 1 1 1 1 3 3 . . . . . 1 3 . 1 1 5 3 Weapon 17 | . . 1 . 1 4 1 1 1 . 1 . . . . . 3 1 1 1 . 1 . Highest Loss Streak 6 | . . 1 1 1 3 2 4 1 4 2 . . . . . 3 6 1 1 1 4 3 To Critical Strikes 1 | . . . . . . . . . . . . . . . . . 1 . . . . . Average Backups 10 | 2 6 9 9 9 9 10 10 10 9 10 14 15 15 13 10 11 11 12 13 14 8 3 Power . | . 1 . . . . 1 1 . . . . 1 1 . . . . . . . . . Propulsion . | . 1 1 . . . 1 1 . . . . . . . . . . . . . . . Utility 5 | . 1 2 4 5 4 2 2 3 5 6 8 6 6 6 6 9 10 9 11 12 7 3 Weapon 3 | . 3 4 4 3 3 4 4 5 3 3 6 8 8 5 3 1 . 2 1 . . . Tool/Special . | . . . . . . . . . . . . . . . . . . . . . . . Unused Backups 33 | . . . 5 1 1 2 1 1 1 2 . . . 7 . . . . 2 4 5 1 Power 1 | . . . . . . . . . . . . . . 1 . . . . . . . . Propulsion . | . . . . . . . . . . . . . . . . . . . . . . . Utility 12 | . . . . . . . 1 1 . 1 . . . 1 . . . . . 3 4 1 Weapon 18 | . . . 5 1 1 2 . . 1 . . . . 5 . . . . 2 1 . . Tool/Special 2 | . . . . . . . . . . 1 . . . . . . . . . . 1 . Average Slot Usage (%) 72 | . 100 95 90 90 89 95 95 91 51 50 52 52 52 51 47 45 44 52 50 47 46 45 Engine 4 | . 14 13 4 . . 7 7 6 4 1 5 5 5 . . 2 5 9 4 . . . Core 2 | . . . 2 8 8 . . . . 4 . . . 2 5 2 . . 1 2 . . Treads 10 | . 28 26 4 22 25 30 23 . . 1 . . 5 5 5 3 . . . . 2 . Wheel 1 | . . . 11 2 . . . . 3 3 . . . . . 1 5 5 1 . . . Hover 2 | . . . 2 . . . 5 25 1 . 1 4 . . . . . . . . . . Device 9 | . 14 9 3 . . 11 11 12 11 14 11 5 5 10 10 10 10 11 13 15 16 17 Storage 6 | . 14 13 7 8 8 7 7 7 5 5 5 5 5 5 5 5 5 5 5 4 2 . Processor 3 | . . . . . . 6 7 7 4 3 5 5 5 5 5 5 5 5 3 . . . Protection 7 | . . 3 16 16 17 7 8 7 5 3 4 11 11 5 5 5 4 3 1 4 3 8 Energy Gun 1 | . . . . . . . 3 9 4 . . . . 1 . 1 . 2 8 4 1 . Energy Cannon 2 | . . . . . . . 8 9 . 5 4 . . 5 5 4 . . . . 1 4 Ballistic Gun 12 | . 28 29 30 31 29 21 9 . . . 2 5 5 . 4 1 . . . . . . Ballistic Cannon 1 | . . . . . . . . 1 4 1 3 5 5 3 . . 5 3 . 1 3 4 Peak Build Rating 164 | 7 8 27 46 48 47 49 62 74 76 92 114 118 118 118 96 96 70 83 88 124 164 136 Average Rating 64 | 5 7 15 38 45 43 44 45 61 68 84 91 114 117 100 93 86 64 64 78 101 135 133 On Entrance 67 | . 7 8 27 46 47 41 43 61 57 71 80 114 118 118 91 94 72 55 72 88 114 136 Avg Prop Armor Cover (%) 6 | . . . 5 8 . . . 3 . . . . . . . . . . . . 10 . Naked Turns . | . . . . . . . . . . . . . . . . . . . . . . . Heaviest Build 151 | 14 29 39 65 66 66 64 61 51 54 64 88 88 88 88 76 69 63 65 84 119 151 90 Greatest Support 104 | 40 40 40 40 60 60 80 83 36 46 101 78 49 49 49 49 61 61 53 78 95 104 104 Greatest Overweight (x) 6 | 2 . . 6 6 1 . 1 3 2 1 1 1 1 1 1 1 1 1 1 2 1 . Average Overweight (x) . | . . . 3 2 . . . 1 1 . . 1 1 1 1 . . . . 1 . . Largest Inventory Capacity 15 | 8 15 15 15 15 15 15 15 15 15 15 15 15 15 15 15 15 15 15 15 15 15 5 Average Capacity 14 | 7 14 15 15 15 15 15 15 15 15 15 15 15 15 15 15 15 15 15 15 15 10 5 Most Carried 15 | 4 8 15 15 15 15 15 15 15 15 15 15 15 15 15 12 14 15 15 15 15 15 5 Average Carried 13 | 2 6 10 14 14 14 14 14 14 13 13 14 15 15 13 10 11 11 12 13 14 10 5 Final Capacity 15 | 8 15 15 15 15 15 15 15 15 15 15 15 15 15 15 15 15 15 15 15 15 5 5 Final Carried 15 | 4 8 14 15 15 15 15 15 14 13 15 15 15 15 11 10 14 9 15 15 15 5 5 Scrap Engine Consumption 248 | . . . . . . . . 24 14 33 12 3 1 43 5 13 6 28 10 37 19 . Constructs Created 5 | . . . . . . . . 3 . 2 . . . . . . . . . . . . Constructs Modified 103 | . . . . . . . . 4 7 12 7 1 . 20 3 6 1 4 12 18 6 2 Class Distribution -------------------- 21% | Construct 18% | Scavenger-Tank 12% | Mutant 8% | Scavenger-Skirmisher 8% | Commander-Construct 7% | Tank 6% | Generator-Mutant 3% | Skirmisher Dominant Class ---------------- Mutant | -10/Materials Mutant | -10/Subcaves Tank | -8/Materials Scavenger-Tank | -8/Garrison Scavenger-Tank | -8/Materials Scavenger-Skirmisher | -7/Factory Scavenger-Skirmisher | -7/Storage Skirmisher | -7/Recycling Commander-Construct | -5/Factory Construct | -5/Extension Commander-Construct | -5/Cetus Commander-Construct | -5/Archives Commander-Construct | -5/Hub_04(d) Construct | -5/Garrison Construct | -4/Factory Construct | -4/Upper Caves Construct | -4/Upper Caves Mutant | -4/Warlord Mutant | -3/Proximity Caves Generator-Mutant | -3/Research Generator-Construct | -3/Quarantine Generator-Construct | -3/Garrison Resources | -11 -10 -10 -8 -8 -8 -7 -7 -7 -5 -5 -5 -5 -5 -5 -4 -4 -4 -4 -3 -3 -3 -3 ----------- Run | Yrd Mat Sub Mat Gar Mat Fac Sto Rec Fac Ext Cet Arc Hub Gar Fac Upp Upp War Pro Res Qua Gar Matter Collected 7514 | 301 191 164 912 1002 648 735 973 120 314 265 68 23 . 454 79 397 59 131 51 269 318 40 Remotely . | . . . . . . . . . . . . . . . . . . . . . . . Salvage Created 15051 | 96 375 124 1203 1184 732 1098 1511 427 982 1930 510 176 . 2194 227 876 230 144 330 103 519 80 Parts 664 | 9 22 7 87 64 25 49 57 17 47 59 26 8 . 85 9 42 9 3 15 5 17 2 Haulers Intercepted 5 | . 2 . 1 . . . 2 . . . . . . . . . . . . . . . Recyclers Shooed 4 | 2 1 . . . . . 1 . . . . . . . . . . . . . . . Parts Field Recycled . | . . . . . . . . . . . . . . . . . . . . . . . Retrieved Matter . | . . . . . . . . . . . . . . . . . . . . . . . Parts Self-Destructed 63 | . . 7 . . . . . . . . . . . . . 33 9 . 14 . . . Prevented . | . . . . . . . . . . . . . . . . . . . . . . . Parts Restored . | . . . . . . . . . . . . . . . . . . . . . . . Kills | -11 -10 -10 -8 -8 -8 -7 -7 -7 -5 -5 -5 -5 -5 -5 -4 -4 -4 -4 -3 -3 -3 -3 ------- Run | Yrd Mat Sub Mat Gar Mat Fac Sto Rec Fac Ext Cet Arc Hub Gar Fac Upp Upp War Pro Res Qua Gar Combat Hostiles Destroyed 288 | . 7 4 30 28 14 27 26 8 10 26 7 2 . 38 5 20 10 3 7 2 12 2 Melee 4 | . . . . . . . . . . 1 . . . . . 3 . . . . . . Guns 147 | . 7 4 30 28 14 18 12 4 1 . . . . 7 5 6 . 3 7 . 1 . Cannons 102 | . . . . . . . 10 3 1 23 3 2 . 31 . 10 6 . . 2 9 2 AOE 23 | . . . . . . 9 3 . 8 1 . . . . . . . . . . 2 . Classes Destroyed 22 | 2 2 1 4 2 3 1 . 1 1 . . . . 2 . 2 . 1 . . . . Worker 8 | . . . 2 . . 1 1 . 4 . . . . . . . . . . . . . Builder 10 | . . . 4 . . . . 1 5 . . . . . . . . . . . . . Tunneler 4 | 2 . . . . . . . . 2 . . . . . . . . . . . . . Hauler 5 | . 2 . 1 . . . 2 . . . . . . . . . . . . . . . Recycler 9 | 1 . . 1 . . . 1 1 4 1 . . . . . . . . . . . . Mechanic 3 | . . . . . 1 2 . . . . . . . . . . . . . . . . Watcher 3 | . . . . . . 1 . . 1 . 1 . . . . . . . . . . . Swarmer 75 | . . . 15 11 . 7 3 1 2 . . . . 4 2 10 10 . 3 . 5 2 Saboteur 3 | . . . . . . . . . . . . . . 3 . . . . . . . . Grunt 98 | . 7 . 10 7 7 14 12 . 4 16 . . . 16 3 2 . . . . . . Brawler 11 | . . . . . 3 3 1 . 1 1 . . . 2 . . . . . . . . Duelist 3 | . . . . . 1 1 1 . . . . . . . . . . . . . . . Protector 1 | . . . . . . . . . 1 . . . . . . . . . . . . . Sentry 47 | . . . 5 6 1 2 8 1 . 7 . 2 . 12 . 1 . . 1 1 . . Demolisher 3 | . . . . . . . . 1 . . . . . . . . . 2 . . . . Specialist 3 | . . . . . . . . . . . . . . . . 3 . . . . . . Hunter 8 | . . . . 1 2 . . 1 2 . . . . . . 2 . . . . . . Programmer 13 | . . . . 3 . . 2 . 2 . . . . . . 1 . . . 1 4 . Behemoth 1 | . . . . . . . . . . . . . . 1 . . . . . . . . Cetus Guard 7 | . . . . . . . . . . . 7 . . . . . . . . . . . Lightning 3 | . . . . . . . . . . . . . . . . . . . . . 3 . Striker 1 | . . . . . . . . . . . . . . . . . . 1 . . . . Subdweller 8 | . . 4 . . . . . 4 . . . . . . . . . . . . . . Thug 4 | . . . . . . . . . . 2 . . . . . . . . 2 . . . Savage 1 | . . . . . . . . . . 1 . . . . . . . . . . . . Butcher 1 | . . . . . . . . . . 1 . . . . . . . . . . . . Guerrilla 1 | . . . . . . . . . . 1 . . . . . . . . . . . . Mutant 2 | . . . . . . . . . . . . . . . . 1 . . 1 . . . Best Kill Streak 17 | 2 3 2 8 4 5 11 4 2 17 4 5 2 . 5 5 5 5 3 3 1 5 2 Combat Bots Only 8 | . 3 2 6 4 5 8 4 2 8 4 4 2 . 5 5 5 5 3 3 1 5 2 Max Kills in Single Turn 5 | 1 1 1 2 2 1 4 2 1 5 2 1 1 . 2 1 1 1 1 1 1 1 1 Gunslinging 1 | . . . 1 1 . . . . . . . . . . . . . . . . . . Exploded 3 | . . . . . . 3 2 . 2 1 . . . . . . . . . . 1 . Melee 1 | . . . . . . . . . . 1 . . . . . 1 . . . . . . Uniques/NPCs Destroyed . | . . . . . . . . . . . . . . . . . . . . . . . Combat | -11 -10 -10 -8 -8 -8 -7 -7 -7 -5 -5 -5 -5 -5 -5 -4 -4 -4 -4 -3 -3 -3 -3 -------- Run | Yrd Mat Sub Mat Gar Mat Fac Sto Rec Fac Ext Cet Arc Hub Gar Fac Upp Upp War Pro Res Qua Gar Hostile Shots Fired 2108 | . 33 21 119 117 77 132 309 24 128 142 22 6 . 135 30 179 213 51 58 55 214 43 Missed 636 | . 6 6 29 36 16 44 133 9 45 42 7 3 . 32 10 38 62 15 23 20 54 6 Hits 1472 | . 27 15 90 81 61 88 176 15 83 100 15 3 . 103 20 141 151 36 35 35 160 37 Melee 21 | . . . . . 7 . 3 . 1 1 . . . 4 . . 4 1 . . . . Projectile 1451 | . 27 15 90 81 54 88 173 15 82 99 15 3 . 99 20 141 147 35 35 35 160 37 AOE 18 | . . . . . . . 1 1 2 4 . . . . . . . 9 . . 1 . Critical Strikes 56 | . . 1 3 3 3 1 3 . 4 6 2 . . 8 . 1 4 . 4 1 11 1 Part Disruptions 2 | . . . . . . . . . . . . . . . . . . . . . 2 . Damage Taken 27971 | . 307 281 1026 974 1195 1005 1944 254 1203 2174 292 75 . 2284 569 2685 2669 1094 790 844 5062 1244 Core 3784 | . 43 69 119 64 43 80 163 29 106 177 13 . . 295 46 715 173 79 69 163 769 569 Absorbed by Shields 1285 | . . . . 48 . 300 . . 623 175 139 . . . . . . . . . . . Redirected to Shielding 135 | . . . 50 . . . . . . . . . . . . . . . . . 70 15 Regen/Repaired (Parts) 6935 | . . . . . . . 20 48 248 925 208 22 . 1386 360 399 219 757 622 557 818 346 Core Remaining (%) 53 | 100 . 55 . . 58 . . 61 . . . . . 40 . . . . 5 . . . Volleys Fired 954 | 14 39 17 77 69 41 53 81 21 52 114 19 6 . 105 13 54 24 16 29 29 72 9 Largest 5 | 2 2 3 5 4 4 3 3 3 3 2 2 2 . 2 2 2 1 2 2 3 2 2 Hottest 951 | 40 40 83 126 92 96 78 228 240 312 193 111 113 . 330 328 951 192 171 177 221 260 224 Shots Fired 1946 | 28 78 35 291 241 144 136 201 52 66 138 31 12 . 157 16 65 24 26 47 61 84 13 Gun 1337 | 28 78 35 291 241 144 128 128 21 14 . 10 6 . 48 13 31 . 26 47 40 8 . Cannon 571 | . . . . . . . 71 31 39 137 21 6 . 109 3 32 24 . . 21 64 13 Launcher 38 | . . . . . . 8 2 . 13 1 . . . . . 2 . . . . 12 . Special . | . . . . . . . . . . . . . . . . . . . . . . . Kinetic 1378 | 28 78 35 291 241 144 128 111 1 33 84 15 . . 75 13 9 14 9 24 23 22 . Thermal 457 | . . . . . . . 88 51 20 53 10 12 . 82 3 54 10 7 8 10 49 . Explosive 24 | . . . . . . 8 2 . 11 1 . . . . . 2 . . . . . . Electromagnetic 62 | . . . . . . . . . 2 . 6 . . . . . . . . 28 13 13 Entropic 25 | . . . . . . . . . . . . . . . . . . 10 15 . . . Robot Hit Streak 31 | 4 13 7 13 12 20 12 23 13 12 19 11 4 . 31 11 5 5 12 7 9 13 3 Robot Miss Streak 9 | 4 2 2 5 8 4 4 3 9 5 3 1 1 . 3 1 3 2 3 3 7 5 3 Penetration Max 2 | . . . . . . . 1 . 1 2 1 . . 1 . . . . . . . . Secondary Targets 18 | . . . 8 6 1 . 2 . . . . . . . . . . 1 . . . . Max Gunslinging Chain 1 | . . . 1 1 1 . 1 . . . . . . . . . . 1 . . . . Shots Hit Robots 1172 | 12 61 25 172 142 98 80 122 30 31 91 20 8 . 95 12 42 20 19 30 29 30 3 Core Hits 595 | 6 17 9 68 47 37 61 74 19 71 49 10 2 . 45 5 17 5 8 12 8 23 2 Critical Kills 15 | . . . 1 1 . . 1 . . 2 . . . 5 3 2 . . . . . . Critical Parts Destroyed 28 | . . . 2 2 1 1 1 . . 6 2 1 . 3 4 3 1 1 . . . . Critical Strikes 54 | . . 1 3 4 1 1 2 . . 8 3 1 . 10 7 7 3 1 1 . 1 . Burn 5 | . . . . . . . . . . . . . . . . 2 2 . 1 . . . Destroy 40 | . . 1 3 1 1 1 2 . . 7 3 1 . 9 7 3 . 1 . . . . Blast 2 | . . . . . . . . . . . . . . 1 . . . . . . 1 . Smash 7 | . . . . 3 . . . . . 1 . . . . . 2 1 . . . . . Melee Attacks 65 | . . . . 25 . 10 5 . . 10 . . . . . 7 7 1 . . . . Impact 65 | . . . . 25 . 10 5 . . 10 . . . . . 7 7 1 . . . . Slashing . | . . . . . . . . . . . . . . . . . . . . . . . Piercing . | . . . . . . . . . . . . . . . . . . . . . . . Sneak Attacks 1 | . . . . . . . 1 . . . . . . . . . . . . . . . Combat Hostiles . | . . . . . . . . . . . . . . . . . . . . . . . Follow-up Attacks . | . . . . . . . . . . . . . . . . . . . . . . . Damage Inflicted 43768 | 149 698 316 2736 2742 1617 2476 3062 840 4112 5230 930 609 . 7587 397 3172 1418 581 1262 922 2777 135 Guns 16193 | 149 698 316 2736 1956 1554 1323 1641 430 210 . 76 97 . 1409 397 678 . 574 1262 516 171 . Cannons 20001 | . . . . . . . 936 410 709 4861 854 512 . 6178 . 2292 1074 . . 406 1634 135 Explosions 5932 | . . . . . 63 1153 378 . 3183 183 . . . . . . . . . . 972 . Melee 1621 | . . . . 786 . . 103 . . 186 . . . . . 202 344 . . . . . Ramming 21 | . . . . . . . 4 . 10 . . . . . . . . 7 . . . . Kinetic 21624 | 149 698 316 2736 1956 1554 1323 1267 21 635 3349 556 . . 4299 397 129 525 153 778 406 377 . Thermal 14184 | . . . . . . . 1310 819 752 1512 76 609 . 3288 . 2841 549 144 110 186 1988 . Explosive 4155 | . . . . . 63 1153 378 . 2378 183 . . . . . . . . . . . . Electromagnetic 1512 | . . . . . . . . . 337 . 298 . . . . . . . . 330 412 135 Impact 1621 | . . . . 786 . . 103 . . 186 . . . . . 202 344 . . . . . Slashing . | . . . . . . . . . . . . . . . . . . . . . . . Piercing . | . . . . . . . . . . . . . . . . . . . . . . . Entropic 651 | . . . . . . . . . . . . . . . . . . 277 374 . . . Highest Corruption 45 | . . . . 1 2 2 7 9 3 3 3 3 3 3 . 5 5 5 . 1 45 5 Average Corruption 4 | . . . . 1 1 1 5 8 2 3 3 3 3 3 . 3 5 5 . 1 17 5 Corruption Purged 2 | . . . . . . 2 . . . . . . . . . . . . . . . . Corruption Blocked . | . . . . . . . . . . . . . . . . . . . . . . . Effects 188 | . . . . 2 9 4 33 36 3 16 3 3 1 20 . 10 15 1 . 3 27 2 Message Errors 49 | . . . . . 2 . 5 13 . . . 1 . 7 . 2 5 1 . 1 10 2 Matter Fused 49 | . . . . 1 1 1 12 10 . 8 . 2 . 7 . 1 2 . . . 4 . Heat Flow Errors 13 | . . . . . 1 2 1 1 . 2 3 . . 1 . . 1 . . . 1 . Energy Discharges 21 | . . . . . 2 . 2 3 1 3 . . . 1 . 3 2 . . 2 2 . Parts Rejected 1 | . . . . . . . . . 1 . . . . . . . . . . . . . Parts Fused 3 | . . . . . . . . 1 . . . . . 1 . . 1 . . . . . Data Loss (minor) 21 | . . . . . 1 1 4 4 1 1 . . . 1 . 2 3 . . . 3 . Data Loss (major) 10 | . . . . . . . 4 1 . 2 . . . . . 1 1 . . . 1 . Misfires 3 | . . . . . . . 1 2 . . . . . . . . . . . . . . Alerts 6 | . . . . 1 1 . 1 1 . . . . 1 1 . . . . . . . . Misdirections 3 | . . . . . . . . . . . . . . . . . . . . . 3 . Weapon Failures 9 | . . . . . 1 . 3 . . . . . . 1 . 1 . . . . 3 . Overload Shots 1 | . . . . . . . . . . . . . . . . 1 . . . . . . Overflow Damage 2040 | . . . . 64 . 45 61 3 162 295 . . . 583 . 292 333 . . . 156 46 Projectiles 1368 | . . . . . . . 13 3 2 217 . . . 583 . 171 184 . . . 149 46 Explosions 221 | . . . . . . 45 . . 160 9 . . . . . . . . . . 7 . Melee 451 | . . . . 64 . . 48 . . 69 . . . . . 121 149 . . . . . Knockbacks 51 | . . . . . . . 1 . 5 23 . . . 7 . . 7 . . 1 7 . Impact 4 | . . . . . . . 1 . . 1 . . . . . . 2 . . . . . Kinetic 38 | . . . . . . . . . 5 17 . . . 6 . . 2 . . 1 7 . Secondary 9 | . . . . . . . . . . 5 . . . 1 . . 3 . . . . . Self-Inflicted Damage 65 | . . . . . . 41 . . 5 16 . . . . . . . 3 . . . . Shots 3 | . . . . . . 2 . . . 1 . . . . . . . . . . . . Rammed 3 | . . . . . . . 1 . 1 . . . . . . . . 1 . . . . Targets Rammed 3 | . . . . . . . 1 . 1 . . . . . . . . 1 . . . . Kicked . | . . . . . . . . . . . . . . . . . . . . . . . Crushed . | . . . . . . . . . . . . . . . . . . . . . . . Highest Temperature 1251 | . 12 . 419 322 322 183 425 373 452 380 270 267 . 522 201 1251 331 53 396 255 1113 587 Average Temperature 145 | . 7 . 108 90 126 46 119 110 194 148 149 111 . 163 98 264 146 21 167 111 262 253 Received Heat Transfer 4606 | . 162 51 369 305 360 256 639 27 161 681 13 . . 594 105 78 186 183 268 36 12 120 Effects 82 | . . . 4 2 1 . 7 3 5 4 . . . 9 . 21 1 . 1 . 19 5 Shutdowns 20 | . . . 1 . . . . . 3 1 . . . 2 . 5 . . 1 . 6 1 Energy Bleed 10 | . . . . . 1 . 1 . 1 2 . . . 1 . 2 1 . . . 1 . Interference 18 | . . . 2 . . . 6 2 . . . . . 1 . 4 . . . . 3 . Matter Decay 12 | . . . 1 1 . . . . 1 1 . . . 2 . 4 . . . . 2 . Short Circuit 3 | . . . . . . . . . . . . . . . . 1 . . . . . 2 Damage (minor) 6 | . . . . 1 . . . 1 . . . . . 1 . 2 . . . . 1 . Damage (major) 6 | . . . . . . . . . . . . . . 2 . . . . . . 4 . Damage (core) 7 | . . . . . . . . . . . . . . . . 3 . . . . 2 2 Siege Activations . | . . . . . . . . . . . . . . . . . . . . . . . Martial Activations . | . . . . . . . . . . . . . . . . . . . . . . . Shielding Activations . | . . . . . . . . . . . . . . . . . . . . . . . Robots Disrupted . | . . . . . . . . . . . . . . . . . . . . . . . Combat Hostiles . | . . . . . . . . . . . . . . . . . . . . . . . Robots Corrupted 12 | . . . . 2 . . . . . 1 4 . . . . 1 4 . . . . . Combat Hostiles 10 | . . . . . . . . . . 1 4 . . . . 1 4 . . . . . Parts Fried 15 | . . . . . . . . . . 1 4 . . . . 1 2 . . . 6 1 Impact Corruptions 21 | . . . . 3 . . 2 . . 2 . . . . . 7 7 . . . . . Robots Melted 2 | . . . . . . . 1 1 . . . . . . . . . . . . . . Combat Hostiles 2 | . . . . . . . 1 1 . . . . . . . . . . . . . . Parts Melted 19 | . . . . . . . 6 5 . 2 . . . 1 . 2 . . 1 1 1 . Heat Transferred 10856 | . . . . . . . 2526 1696 886 1091 . 185 . 647 . 1419 500 125 222 185 1374 . Parts Sabotaged 6 | . . . . . . . . . 2 . . . . 2 . . . 2 . . . . Parts Stolen . | . . . . . . . . . . . . . . . . . . . . . . . Parts Stripped . | . . . . . . . . . . . . . . . . . . . . . . . Power Chain Reactions . | . . . . . . . . . . . . . . . . . . . . . . . Alert | -11 -10 -10 -8 -8 -8 -7 -7 -7 -5 -5 -5 -5 -5 -5 -4 -4 -4 -4 -3 -3 -3 -3 ------- Run | Yrd Mat Sub Mat Gar Mat Fac Sto Rec Fac Ext Cet Arc Hub Gar Fac Upp Upp War Pro Res Qua Gar Maximum Alert Level 5 | . . . 2 5 3 2 2 . 4 4 3 2 . 5 4 . . . . . . . Low Security (%) 34 | 100 100 . 55 . . . 28 100 . . . . 100 . . . . . . 100 100 100 Level 1 15 | . . . 33 7 . 36 61 . 26 . . 10 . 5 . . . . . . . . Level 2 15 | . . . 10 15 . 63 9 . 38 36 . 89 . 2 . . . . . . . . Level 3 16 | . . . . 32 100 . . . 3 39 100 . . 9 . . . . . . . . Level 4 14 | . . . . 42 . . . . 31 23 . . . 33 100 . . . . . . . Level 5 5 | . . . . 1 . . . . . . . . . 48 . . . . . . . . High Security . | . . . . . . . . . . . . . . . . . . . . . . . Max Security . | . . . . . . . . . . . . . . . . . . . . . . . Peak Influence 2423 | 5 82 . 458 1689 939 549 418 154 1326 1366 940 540 175 2423 1513 . . . . 172 114 142 Initial 1271 | . . . . 284 822 394 224 154 250 604 761 354 175 118 1271 . . . . 172 . 45 Average 578 | 1 39 . 222 1007 878 430 227 43 708 857 870 497 168 1608 1398 . . . . 35 31 95 Influence Increases 13823 | 15 248 . 965 1425 445 768 1185 274 1773 1584 284 196 14 2545 332 400 385 90 90 286 412 107 Destroy 0b10 Robot/C 6880 | . 140 . 600 560 280 540 680 120 460 900 160 80 . 1180 140 380 200 60 80 40 240 40 Destroy 0b10 Robot/NC 270 | 15 10 . 40 15 5 20 25 20 100 5 10 . . . 5 . . . . . . . Destroy Leader 914 | . 34 . 122 40 70 92 184 . 132 80 . . . 50 10 20 20 . 10 20 30 . Allied During Kill 1673 | . . . . . . . 125 17 276 328 97 80 . 728 22 . . . . . . . Successful Hack 184 | . 4 . 24 21 6 . 43 17 13 7 . . 14 14 . . . . . . 21 . Select Force Hacks 210 | . 60 . 60 . . . . 90 . . . . . . . . . . . . . . Disable Machine 855 | . . . 45 15 15 45 60 . 330 75 15 30 . 60 75 . . . . 45 45 . Anti-Garrison Action 900 | . . . . 600 . . . . . . . . . 250 . . . . . . . 50 Destroy Structure 997 | . . . 14 129 39 56 38 10 212 114 2 6 . 203 80 . . . . 16 76 2 Advance Influence 400 | . . . . . . . . . 250 . . . . . . . . . . 150 . . Lose Combat Pursuer 540 | . . . 60 45 30 15 30 . . 75 . . . 60 . . 165 30 . 15 . 15 Influence Decreases 13701 | 15 192 56 527 174 1267 1141 1283 670 538 1459 759 581 345 291 1302 1030 483 807 64 320 352 45 Entered New Map 6778 | . . 28 . 154 867 473 270 242 . 631 599 531 325 51 1152 538 157 725 8 12 . 15 Time Decay 4838 | 15 192 28 497 . 310 498 496 356 238 458 160 50 20 . 110 452 246 72 46 298 296 . Lost Part 566 | . . . 30 20 70 20 80 20 40 50 . . . . . 40 80 10 10 10 56 30 Lost Ally 1002 | . . . . . 20 . 220 52 110 320 . . . 240 40 . . . . . . . Purge Threat 517 | . . . . . . 150 217 . 150 . . . . . . . . . . . . . Squads Dispatched 47 | . 3 . 4 . 3 7 10 . 7 5 . . . . 1 . 1 . . 3 3 . Investigation 12 | . 2 . 3 . . 2 2 . . 2 . . . . . . . . . 1 . . Extermination 6 | . . . . . . . 3 . 1 . . . . . . . . . . . 2 . Reinforcement 19 | . 1 . 1 . 1 3 3 . 4 2 . . . . 1 . . . . 2 1 . Assault 10 | . . . . . 2 2 2 . 2 1 . . . . . . 1 . . . . . Garrison . | . . . . . . . . . . . . . . . . . . . . . . . Intercept . | . . . . . . . . . . . . . . . . . . . . . . . Searches Triggered . | . . . . . . . . . . . . . . . . . . . . . . . Construction Impeded 4 | . . . . . . 1 . . 1 1 . . . . . . . . . 1 . . Haulers Reinforced 4 | . . . . . . . 2 . 2 . . . . . . . . . . . . . Active Scanning Responses . | . . . . . . . . . . . . . . . . . . . . . . . Cargo Convoy Interrupts . | . . . . . . . . . . . . . . . . . . . . . . . Stealth | -11 -10 -10 -8 -8 -8 -7 -7 -7 -5 -5 -5 -5 -5 -5 -4 -4 -4 -4 -3 -3 -3 -3 --------- Run | Yrd Mat Sub Mat Gar Mat Fac Sto Rec Fac Ext Cet Arc Hub Gar Fac Upp Upp War Pro Res Qua Gar Distress Signals 23 | . . . 4 . 1 2 2 2 2 2 2 . . . . . . . . 4 2 . Communications Jammed 27 | . . . . . . . . . . 27 . . . . . . . . . . . . Distress Signals 27 | . . . . . . . . . . 27 . . . . . . . . . . . . Times Spotted 528 | . 10 7 42 36 22 36 41 9 33 52 9 3 . 66 11 20 26 51 7 11 27 9 Peak Tracking Total 13 | . 3 3 8 4 7 5 6 2 8 6 5 1 . 8 7 5 10 13 3 2 7 7 Tactical Retreats 26 | . . . 4 2 2 1 2 . . 4 . . . 3 . . 5 1 . 1 . 1 Traps | -11 -10 -10 -8 -8 -8 -7 -7 -7 -5 -5 -5 -5 -5 -5 -4 -4 -4 -4 -3 -3 -3 -3 ------- Run | Yrd Mat Sub Mat Gar Mat Fac Sto Rec Fac Ext Cet Arc Hub Gar Fac Upp Upp War Pro Res Qua Gar Traps Triggered 24 | . 1 . 3 4 2 . 2 . . 5 . . 1 5 . . . . . 1 . . Indirectly . | . . . . . . . . . . . . . . . . . . . . . . . Trap Hack Attempts . | . . . . . . . . . . . . . . . . . . . . . . . Triggered . | . . . . . . . . . . . . . . . . . . . . . . . Disarmed . | . . . . . . . . . . . . . . . . . . . . . . . Reprogrammed . | . . . . . . . . . . . . . . . . . . . . . . . Reused . | . . . . . . . . . . . . . . . . . . . . . . . Traps Extracted . | . . . . . . . . . . . . . . . . . . . . . . . Installed . | . . . . . . . . . . . . . . . . . . . . . . . Triggered . | . . . . . . . . . . . . . . . . . . . . . . . Machines | -11 -10 -10 -8 -8 -8 -7 -7 -7 -5 -5 -5 -5 -5 -5 -4 -4 -4 -4 -3 -3 -3 -3 ---------- Run | Yrd Mat Sub Mat Gar Mat Fac Sto Rec Fac Ext Cet Arc Hub Gar Fac Upp Upp War Pro Res Qua Gar Machines Disabled 73 | . . 1 3 9 1 3 4 . 22 5 1 2 . 8 5 2 . . . 3 3 1 Max in Single Turn 11 | . . 1 2 2 1 2 1 . 11 1 1 1 . 1 1 1 . . . 1 1 1 Garrison Access 2 | . . . . . . 1 . . 1 . . . . . . . . . . . . . Garrison Relay 8 | . . . . 4 . . . . . . . . . 3 . . . . . . . 1 Phase Generator 1 | . . . . 1 . . . . . . . . . . . . . . . . . . Machines Repaired . | . . . . . . . . . . . . . . . . . . . . . . . Machines Dismantled . | . . . . . . . . . . . . . . . . . . . . . . . Machines Sabotaged . | . . . . . . . . . . . . . . . . . . . . . . . Overloaded Fab Kills . | . . . . . . . . . . . . . . . . . . . . . . . Hacking | -11 -10 -10 -8 -8 -8 -7 -7 -7 -5 -5 -5 -5 -5 -5 -4 -4 -4 -4 -3 -3 -3 -3 --------- Run | Yrd Mat Sub Mat Gar Mat Fac Sto Rec Fac Ext Cet Arc Hub Gar Fac Upp Upp War Pro Res Qua Gar Machines Accessed 69 | . 3 2 9 3 3 5 12 11 1 6 1 . 2 1 . 1 . 1 . 3 5 . Terminals 49 | . 1 . 5 3 3 4 12 5 1 6 1 . 1 1 . 1 . . . 1 4 . Fabricators 1 | . . . . . . . . . . . . . . . . . . . . 1 . . Repair Stations . | . . . . . . . . . . . . . . . . . . . . . . . Recycling Units 9 | . 2 . 2 . . . . 5 . . . . . . . . . . . . . . Scanalyzers 1 | . . . 1 . . . . . . . . . . . . . . . . . . . Garrison Access 5 | . . . 1 . . 1 . . . . . . 1 . . . . . . 1 1 . Total Hacks 174 | . 15 7 23 7 9 11 33 31 6 12 1 . 3 1 . 2 . 1 . 4 8 . Successful 87 | . 7 7 16 2 3 4 12 22 3 3 . . 1 1 . 2 . 1 . . 3 . Failed 86 | . 8 . 6 5 6 7 21 9 3 9 1 . 2 . . . . . . 4 5 . Catastrophic 19 | . . . . 1 2 6 2 1 . 2 1 . 1 . . . . . . 2 1 . Database Lockouts 1 | . . . 1 . . . . . . . . . . . . . . . . . . . Manual 66 | . 7 . 14 . 5 5 9 15 4 2 1 . . . . 1 . . . . 3 . Terminals 119 | . 6 . 13 7 9 10 33 11 6 12 1 . 1 1 . 2 . . . 1 6 . Fabricators 1 | . . . . . . . . . . . . . . . . . . . . 1 . . Repair Stations . | . . . . . . . . . . . . . . . . . . . . . . . Recycling Units 27 | . 9 . 6 . . . . 12 . . . . . . . . . . . . . . Scanalyzers 3 | . . . 3 . . . . . . . . . . . . . . . . . . . Garrison Access 8 | . . . 1 . . 1 . . . . . . 2 . . . . . . 2 2 . Terminal Hacks 41 | . . 7 1 2 1 1 10 8 2 3 . . . 1 . 2 . 1 . . 2 . Record 15 | . . 6 . . . . . 6 . . . . . . . 2 . . . . 1 . Prototype ID Bank 2 | . . . . . . . 2 . . . . . . . . . . . . . . . Open Door 9 | . . . . 1 . . 3 . . 3 . . . . . . . 1 . . 1 . Branch Access Points 2 | . . . . . 1 . . . 1 . . . . . . . . . . . . . Emergency Access Points 3 | . . . . 1 . . 1 . . . . . . 1 . . . . . . . . Terminal Index 1 | . . . . . . . 1 . . . . . . . . . . . . . . . Unreport Threat 4 | . . . . . . 1 2 . 1 . . . . . . . . . . . . . Recall Investigation 1 | . . . . . . . 1 . . . . . . . . . . . . . . . Zone Layout 1 | . . . 1 . . . . . . . . . . . . . . . . . . . Proto ID Catalog 1 | . . 1 . . . . . . . . . . . . . . . . . . . . Release Object 2 | . . . . . . . . 2 . . . . . . . . . . . . . . Fabricator Hacks . | . . . . . . . . . . . . . . . . . . . . . . . Repair Station Hacks . | . . . . . . . . . . . . . . . . . . . . . . . Recycling Unit Hacks 13 | . 3 . 4 . . . . 6 . . . . . . . . . . . . . . Report Inventory 8 | . 2 . 2 . . . . 4 . . . . . . . . . . . . . . Retrieve Components 5 | . 1 . 2 . . . . 2 . . . . . . . . . . . . . . Scanalyzer 2 | . . . 2 . . . . . . . . . . . . . . . . . . . Insert Component 1 | . . . 1 . . . . . . . . . . . . . . . . . . . Retrieve Study 1 | . . . 1 . . . . . . . . . . . . . . . . . . . Garrison Access Hacks 4 | . . . 1 . . 1 . . . . . . 1 . . . . . . . 1 . Unlock Access 3 | . . . 1 . . . . . . . . . 1 . . . . . . . 1 . Seal Access 1 | . . . . . . 1 . . . . . . . . . . . . . . . . Unauthorized Hacks 27 | . 4 . 8 . 2 2 2 8 1 . . . . . . . . . . . . . Terminals 20 | . 2 . 6 . 2 2 2 5 1 . . . . . . . . . . . . . Botnet 10 | . 1 . 2 . 1 2 2 1 1 . . . . . . . . . . . . . Skim 10 | . 1 . 4 . 1 . . 4 . . . . . . . . . . . . . . Fabricators . | . . . . . . . . . . . . . . . . . . . . . . . Repair Stations . | . . . . . . . . . . . . . . . . . . . . . . . Recycling Units 7 | . 2 . 2 . . . . 3 . . . . . . . . . . . . . . Tunnel 7 | . 2 . 2 . . . . 3 . . . . . . . . . . . . . . Scanalyzers . | . . . . . . . . . . . . . . . . . . . . . . . Garrison Access . | . . . . . . . . . . . . . . . . . . . . . . . Data Cores Recovered 1 | . . . . . . . . . . . . . . . 1 . . . . . . . Used . | . . . . . . . . . . . . . . . . . . . . . . . Hacking Detections 56 | . 2 . 8 2 3 4 12 8 1 5 2 . 1 . . 1 . . . 3 4 . Full Trace Events 9 | . . . 1 . . 2 1 2 . 2 . . . . . . . . . 1 . . Feedback Events 2 | . . . . . . . . 2 . . . . . . . . . . . . . . Corruption 2 | . . . . . . . . 2 . . . . . . . . . . . . . . Feedback Blocked . | . . . . . . . . . . . . . . . . . . . . . . . Robot Schematics Acquired . | . . . . . . . . . . . . . . . . . . . . . . . Robots Built . | . . . . . . . . . . . . . . . . . . . . . . . Authchips . | . . . . . . . . . . . . . . . . . . . . . . . Time . | . . . . . . . . . . . . . . . . . . . . . . . Total Robot Build Rating . | . . . . . . . . . . . . . . . . . . . . . . . Part Schematics Acquired . | . . . . . . . . . . . . . . . . . . . . . . . Parts Built . | . . . . . . . . . . . . . . . . . . . . . . . Authchips . | . . . . . . . . . . . . . . . . . . . . . . . Time . | . . . . . . . . . . . . . . . . . . . . . . . Total Part Build Rating . | . . . . . . . . . . . . . . . . . . . . . . . Part Studies Acquired 1 | . . . 1 . . . . . . . . . . . . . . . . . . . Parts Repaired . | . . . . . . . . . . . . . . . . . . . . . . . Time . | . . . . . . . . . . . . . . . . . . . . . . . Parts Recycled . | . . . . . . . . . . . . . . . . . . . . . . . Recycled Matter . | . . . . . . . . . . . . . . . . . . . . . . . Retrieved Matter . | . . . . . . . . . . . . . . . . . . . . . . . Retrieved Components 30 | . 7 . 12 . . . . 11 . . . . . . . . . . . . . . Parts Scanalyzed . | . . . . . . . . . . . . . . . . . . . . . . . Part Schematics Acquired . | . . . . . . . . . . . . . . . . . . . . . . . Parts Damaged . | . . . . . . . . . . . . . . . . . . . . . . . Bothacking | -11 -10 -10 -8 -8 -8 -7 -7 -7 -5 -5 -5 -5 -5 -5 -4 -4 -4 -4 -3 -3 -3 -3 ------------ Run | Yrd Mat Sub Mat Gar Mat Fac Sto Rec Fac Ext Cet Arc Hub Gar Fac Upp Upp War Pro Res Qua Gar Used RIF Installer . | . . . . . . . . . . . . . . . . . . . . . . . Robots Hacked . | . . . . . . . . . . . . . . . . . . . . . . . Non-combat . | . . . . . . . . . . . . . . . . . . . . . . . Combat . | . . . . . . . . . . . . . . . . . . . . . . . Robot Hacks Applied . | . . . . . . . . . . . . . . . . . . . . . . . Relay Couplers Released 32 | . . . . 14 . . . . 2 . . . . 13 . . . . . . . 3 Machine Destruction 32 | . . . . 14 . . . . 2 . . . . 13 . . . . . . . 3 Fabnet Peak Effective % . | . . . . . . . . . . . . . . . . . . . . . . . Robots Rewired 41 | . . . . . . . . 14 . 19 . . . 8 . . . . . . . . Allies Hacked 3 | . . . . . . . . . 3 . . . . . . . . . . . . . Hacks Repelled . | . . . . . . . . . . . . . . . . . . . . . . . Allies | -11 -10 -10 -8 -8 -8 -7 -7 -7 -5 -5 -5 -5 -5 -5 -4 -4 -4 -4 -3 -3 -3 -3 -------- Run | Yrd Mat Sub Mat Gar Mat Fac Sto Rec Fac Ext Cet Arc Hub Gar Fac Upp Upp War Pro Res Qua Gar Total Allies 67 | . . . . 1 . . 12 14 . 27 5 . . 8 . . . . . . . . Largest Group 11 | . . . . 1 1 . 10 9 9 10 11 11 10 9 3 . . . . . . . Highest-Rated Group 764 | . . . . 20 20 . 173 250 250 401 764 764 626 574 120 . . . . . . . Highest-Rated Ally 159 | . . . . 20 20 . 31 40 40 159 138 138 96 96 49 . . . . . . . Initial Warlord ECA Mod 13 | . . . . . 10 9 9 9 7 7 7 7 7 7 13 13 13 13 12 12 12 12 Total Orders 1 | . . . . . . . . 1 . . . . . . . . . . . . . . DROP 1 | . . . . . . . . 1 . . . . . . . . . . . . . . Ally Attacks 499 | . . . . 1 . . 64 16 68 149 40 21 . 133 7 . . . . . . . Total Damage 11476 | . . . . 51 . . 728 221 1810 2814 604 482 . 4234 532 . . . . . . . Kills 81 | . . . . 1 . . 9 2 17 21 2 2 . 23 4 . . . . . . . Allies Corrupted 3 | . . . . . . . . . 2 . . . . 1 . . . . . . . . Allies Melted 1 | . . . . . 1 . . . . . . . . . . . . . . . . . Intel | -11 -10 -10 -8 -8 -8 -7 -7 -7 -5 -5 -5 -5 -5 -5 -4 -4 -4 -4 -3 -3 -3 -3 ------- Run | Yrd Mat Sub Mat Gar Mat Fac Sto Rec Fac Ext Cet Arc Hub Gar Fac Upp Upp War Pro Res Qua Gar Active Infowar (turns) 5530 | 18 500 627 344 . . 1230 1367 757 427 236 . . . . . . . . . 24 . . Sensors 3746 | . . . . . . 1230 1367 757 368 . . . . . . . . . . 24 . . Terrain 21 | . . 21 . . . . . . . . . . . . . . . . . . . . Seismic 1468 | 18 500 606 344 . . . . . . . . . . . . . . . . . . . Jamming 295 | . . . . . . . . . 59 236 . . . . . . . . . . . . Robot Analysis Total . | . . . . . . . . . . . . . . . . . . . . . . . Derelict Logs Recovered 2 | . . 1 . . . . . . . . . . . . . 1 . . . . . . Drone Launches . | . . . . . . . . . . . . . . . . . . . . . . . Drone Recoveries . | . . . . . . . . . . . . . . . . . . . . . . . Exploration | -11 -10 -10 -8 -8 -8 -7 -7 -7 -5 -5 -5 -5 -5 -5 -4 -4 -4 -4 -3 -3 -3 -3 ------------- Run | Yrd Mat Sub Mat Gar Mat Fac Sto Rec Fac Ext Cet Arc Hub Gar Fac Upp Upp War Pro Res Qua Gar Turns Passed 18419 | 130 500 951 1442 2135 697 1321 1367 1132 518 1157 337 111 54 1458 239 1134 527 680 435 1202 831 61 Spaces Moved 10462 | 58 197 539 821 817 227 676 701 786 361 624 299 86 34 834 135 687 467 522 300 756 510 25 Core 15 | 15 . . . . . . . . . . . . . . . . . . . . . . Treads 4715 | 43 197 539 54 611 227 676 533 . . 277 13 1 34 834 135 430 . . . 111 . . Legs 1682 | . . . . . . . . 48 . . 241 . . . . . . . 213 645 510 25 Wheels 2916 | . . . 767 206 . . . . 263 347 . . . . . 257 467 522 87 . . . Hover 1134 | . . . . . . . 168 738 98 . 45 85 . . . . . . . . . . Flight . | . . . . . . . . . . . . . . . . . . . . . . . Fastest Speed 50 | 50 160 160 95 163 160 160 98 93 55 55 55 83 118 107 149 86 86 86 91 121 100 100 Average Speed 131 | 133 160 160 134 214 231 160 145 110 96 71 77 83 118 114 149 127 93 114 99 140 113 150 Slowest Speed 264 | 160 160 160 170 245 243 160 240 264 115 85 83 118 118 149 149 149 116 135 135 196 130 174 Overloaded Moves . | . . . . . . . . . . . . . . . . . . . . . . . Propulsion Burnouts . | . . . . . . . . . . . . . . . . . . . . . . . Robots Hopped . | . . . . . . . . . . . . . . . . . . . . . . . Potential Cave-ins 8 | . . . . . . . . . . 8 . . . . . . . . . . . . Cave-ins Triggered . | . . . . . . . . . . . . . . . . . . . . . . . Teleports 1 | . . . . . . . . . . . . . . . . . . . . . 1 . Exploration Rate (%) 47 | 3 35 28 62 95 26 19 87 98 19 66 75 74 6 74 6 75 71 64 47 17 45 8 Regions Visited 22 Branch Regions 12 Pre-discovered Areas 8 | . 2 . 2 . . . . 3 . . . . . . . 1 . . . . . . Known Exits Taken 9 | . . 1 1 . 1 1 1 1 1 . . . 1 . . . . . . . 1 . Unknown Exits Taken 11 | 1 1 . . . . . . . . 1 1 1 . . 1 1 1 1 1 1 . . Scrap Searched 6 | . . . . . . . . . . . . . . . . 4 . . 2 . . . Spaces Dug 65 | . . . . . . 6 11 2 8 35 . . . 1 . 2 . . . . . . Terrain Destroyed 724 | . . . 7 143 38 61 38 9 142 86 1 2 . 33 6 61 9 3 27 8 49 1 Melee 7 | . . . . . . 6 1 . . . . . . . . . . . . . . . Projectile 262 | . . . 7 . . 2 19 9 27 63 1 2 . 33 6 20 9 3 27 8 25 1 AOE 455 | . . . . 143 38 53 18 . 115 23 . . . . . 41 . . . . 24 . Terrain Rammed . | . . . . . . . . . . . . . . . . . . . . . . . Walls Destroyed . | . . . . . . . . . . . . . . . . . . . . . . . Machines Disabled . | . . . . . . . . . . . . . . . . . . . . . . . Actions | -11 -10 -10 -8 -8 -8 -7 -7 -7 -5 -5 -5 -5 -5 -5 -4 -4 -4 -4 -3 -3 -3 -3 --------- Run | Yrd Mat Sub Mat Gar Mat Fac Sto Rec Fac Ext Cet Arc Hub Gar Fac Upp Upp War Pro Res Qua Gar Total 13462 | 82 312 597 998 999 315 812 897 1016 460 1171 375 113 47 1182 157 866 523 574 388 845 694 39 Wait 1036 | . 71 27 31 46 19 28 65 50 19 196 36 22 12 143 3 102 13 15 43 26 65 4 Move 10444 | 57 196 538 821 816 226 675 700 785 360 623 298 85 34 833 134 686 466 522 299 755 510 25 Hop . | . . . . . . . . . . . . . . . . . . . . . . . Pick Up 92 | 4 4 2 11 3 4 7 5 2 4 4 7 . . 2 2 7 . 7 5 6 6 . Fast Attach 94 | 7 . 1 18 3 8 4 11 2 7 4 1 . 1 2 . . 1 4 2 4 14 . Attach 61 | . . 3 5 1 5 6 5 2 5 2 1 . . 1 . 4 6 2 3 3 7 . Detach 45 | . . 2 5 . 2 2 1 10 5 4 1 . . . . 2 3 1 2 3 2 . Swap 102 | . 1 5 6 19 3 18 11 2 3 5 3 . . 5 2 3 1 4 1 7 2 1 Drop 148 | . 1 2 24 15 7 9 12 11 4 4 9 . . 10 3 1 2 2 4 12 16 . Fire 954 | 14 39 17 77 69 41 53 81 21 52 114 19 6 . 105 13 54 24 16 29 29 72 9 Melee 65 | . . . . 25 . 10 5 . . 10 . . . . . 7 7 1 . . . . Ram 1 | . . . . . . . . . 1 . . . . . . . . . . . . . Kick . | . . . . . . . . . . . . . . . . . . . . . . . Crush 1 | . . . . . . . 1 . . . . . . . . . . . . . . . Escape Stasis 34 | . . . . 2 . . . . . 24 . . . 8 . . . . . . . . Rewire 385 | . . . . . . . . 131 . 181 . . . 73 . . . . . . . . Trap . | . . . . . . . . . . . . . . . . . . . . . . . Miscellaneous . | . . . . . . . . . . . . . . . . . . . . . . . Route ------- -11/Scrapyard -10/Materials (discovered 2 exits: [*Mat] / *Sub) -10/Subcaves (discovered 3 exits: *Mat x2 / Rec) -8/Materials (discovered 4 exits: *Fac x3 / Gar) -8/Garrison (discovered 3 exits: *Mat x3) -8/Materials -7/Factory (discovered 3 exits: *Fac / *Sto / *Low) -7/Storage (discovered 2 exits: *Fac / *Rec) -7/Recycling -5/Factory (discovered 4 exits: *Upp x2 / *Ext x2) -5/Extension (discovered 2 exits: [*Fac] / *Cet) -5/Cetus (discovered 3 exits: [*Fac x2] / [*Arc]) -5/Archives (discovered 3 exits: [*Fac] / *Hub x2) -5/Hub_04(d) -5/Garrison (discovered 3 exits: [*Fac x3]) -4/Factory -4/Upper Caves -4/Upper Caves (discovered 2 exits: *Res / *War) -4/Warlord -3/Proximity Caves -3/Research -3/Quarantine -3/Garrison History --------- Turn | Location | Event 6 | -11/Scrapyard | Discovered new exit (range 16) 131 | -11/Scrapyard | Entered Materials 302 | -10/Materials | Build established: Mutant 356 | -10/Materials | Discovered new exit (range 9) 431 | -10/Materials | Discovered new exit (range 6) 631 | -10/Materials | Entered Subcaves 632 | -10/Subcaves | Approached by a straggling Scientist 754 | -10/Subcaves | Learned location of 2 exits from Materials 959 | -10/Subcaves | Ambushed by Subdweller buried in earth 1226 | -10/Subcaves | Visited 4L-MR0's lab 1261 | -10/Subcaves | Found Gun Armor 1263 | -10/Subcaves | Attached Gun Armor, gained temporary slots: Weapon x2 1269 | -10/Subcaves | Found Prototype Special Melee Weapon 1354 | -10/Subcaves | Visited Clippyterm 1359 | -10/Subcaves | Identified exit to Materials 1359 | -10/Subcaves | Identified exit to Recycling 1567 | -10/Subcaves | Build established: Gunner 1582 | -10/Subcaves | Entered Materials 1582 | -8/Materials | Evolved 4 slots: Propulsion x1, Utility x2, Weapon x1 1583 | -8/Materials | Identified exit to Factory 1830 | -8/Materials | Central database locked down 1830 | -8/Materials | Identified 1B-0RG's Assimilator 2223 | -8/Materials | Build established: Tank 2590 | -8/Materials | Discovered exit to Factory (range 14) 3024 | -8/Materials | Identified exit to Garrison 3024 | -8/Materials | Entered Garrison 3052 | -8/Garrison | Triggered checkpoint 3091 | -8/Garrison | Garrison Relay disabled 3223 | -8/Garrison | Build established: Scavenger-Tank 3300 | -8/Garrison | Triggered checkpoint 3348 | -8/Garrison | Triggered checkpoint 3358 | -8/Garrison | Triggered checkpoint 3465 | -8/Garrison | Discovered new exit (range 14) 3522 | -8/Garrison | Phase Generator disabled 3829 | -8/Garrison | Garrison Relay disabled 3834 | -8/Garrison | Triggered checkpoint 3971 | -8/Garrison | Triggered checkpoint 4152 | -8/Garrison | Discovered new exit (range 13) 4376 | -8/Garrison | Triggered checkpoint 4514 | -8/Garrison | Garrison Relay disabled 4532 | -8/Garrison | Triggered checkpoint 4923 | -8/Garrison | Rescued a captive Derelict 4944 | -8/Garrison | Triggered checkpoint 4970 | -8/Garrison | Garrison Relay disabled 5062 | -8/Garrison | Discovered new exit (range 10) 5159 | -8/Garrison | Entered Materials 5159 | -8/Materials | Accompanied by 1 ally 5508 | -8/Materials | Lost 3 parts (1p2w) 5559 | -8/Materials | First assault squad dispatched 5624 | -8/Materials | Discovered exit to Factory (range 8) 5856 | -8/Materials | Entered Factory 5856 | -7/Factory | Evolved 2 slots: Propulsion x1, Utility x1 6129 | -7/Factory | Discovered new exit (range 5) 6138 | -7/Factory | Identified exit to Factory 6256 | -7/Factory | First assault squad dispatched 6488 | -7/Factory | Destroyed 8 combat bots 6630 | -7/Factory | Discovered new exit (range 16) 6660 | -7/Factory | Identified exit to Lower Caves 6688 | -7/Factory | Found Powered Armor 6896 | -7/Factory | Build established: Scavenger-Skirmisher 7097 | -7/Factory | Discovered new exit (range 13) 7116 | -7/Factory | Identified exit to Storage 7177 | -7/Factory | Entered Storage 7623 | -7/Storage | Assisted by bots powering up and referring to "LRC-V3" 7724 | -7/Storage | Discovered exit to Factory (range 8) 7737 | -7/Storage | Found Prototype Protection 7775 | -7/Storage | Lost 5 allies 7819 | -7/Storage | Lost 3 allies 8048 | -7/Storage | Identified Lgt. Regenerative Plating 8103 | -7/Storage | Lost 4 parts (3n1u) 8300 | -7/Storage | Met a pair of Derelict thieves 8542 | -7/Storage | Used back door to open Recycling access 8542 | -7/Storage | Discovered exit to Recycling (range 4) 8544 | -7/Storage | Entered Recycling 8612 | -7/Recycling | Build established: Skirmisher 9034 | -7/Recycling | Discovered new exit (range 16) 9053 | -7/Recycling | Identified exit to Factory 9173 | -7/Recycling | Lost 5 allies 9295 | -7/Recycling | Entered Scraplab 9303 | -7/Recycling | Found Prototype Device 9303 | -7/Recycling | Identified Scrap Engine 9676 | -7/Recycling | Entered Factory 9676 | -5/Factory | Accompanied by 9 allies 9676 | -5/Factory | Evolved 4 slots: Power x1, Propulsion x1, Utility x1, Weapon x1 9729 | -5/Factory | Discovered new exit (range 15) 9756 | -5/Factory | Identified exit to Upper Caves 9869 | -5/Factory | Noticed a derelict Sapper rigging charges 9903 | -5/Factory | Identified exit to Extension 10064 | -5/Factory | Destroyed 8 combat bots 10101 | -5/Factory | Lost 6 allies 10144 | -5/Factory | Lost 4 parts (1p3u) 10194 | -5/Factory | Entered Extension 10265 | -5/Extension | Rescued a captive Derelict 10354 | -5/Extension | Build established: Construct 10461 | -5/Extension | Rescued a captive Derelict 10462 | -5/Extension | Rescued a captive Derelict 10595 | -5/Extension | Rescued a captive Derelict 10605 | -5/Extension | Rescued a captive Derelict 10844 | -5/Extension | Spotted B-75 Beast 10877 | -5/Extension | Allies destroyed B-75 Beast 10911 | -5/Extension | Lost 8 allies 10960 | -5/Extension | Rescued A7 11094 | -5/Extension | First assault squad dispatched 11219 | -5/Extension | Rescued a captive Derelict 11226 | -5/Extension | Rescued a captive Derelict 11236 | -5/Extension | Lost 9 allies 11297 | -5/Extension | Rescued a captive Derelict 11314 | -5/Extension | Discovered new exit (range 10) 11317 | -5/Extension | Discovered new exit (range 6) 11351 | -5/Extension | Entered Cetus 11351 | -5/Cetus | Accompanied by 6 allies (A7) 11356 | -5/Cetus | Acquired a Cetus Manufacturing Module code from A7 11359 | -5/Cetus | Spotted Cetus Guard 11359 | -5/Cetus | Spotted Cetus Guard 11363 | -5/Cetus | Spotted Cetus Guard 11365 | -5/Cetus | Destroyed Cetus Guard 11368 | -5/Cetus | Spotted Cetus Guard 11372 | -5/Cetus | Destroyed Cetus Guard 11374 | -5/Cetus | Allies destroyed Cetus Guard 11375 | -5/Cetus | Destroyed Cetus Guard 11437 | -5/Cetus | Discovered new exit (range 15) 11497 | -5/Cetus | Started Cetus Manufacturing Module 11506 | -5/Cetus | Discovered new exit (range 15) 11521 | -5/Cetus | Spotted Cetus Guard 11521 | -5/Cetus | Spotted Cetus Guard 11522 | -5/Cetus | Manufactured an Enhanced Grunt 11524 | -5/Cetus | Spotted Cetus Guard 11524 | -5/Cetus | Spotted Cetus Guard 11526 | -5/Cetus | Destroyed Cetus Guard 11531 | -5/Cetus | Destroyed Cetus Guard 11535 | -5/Cetus | Destroyed Cetus Guard 11540 | -5/Cetus | Destroyed Cetus Guard 11544 | -5/Cetus | Discovered new exit (range 15) 11547 | -5/Cetus | Manufactured an Enhanced Grunt 11548 | -5/Cetus | Met Revision 17 11572 | -5/Cetus | Manufactured an Enhanced Grunt 11597 | -5/Cetus | Manufactured an Enhanced Grunt 11622 | -5/Cetus | Manufactured an Enhanced Grunt 11627 | -5/Cetus | Escorted A7 to Cetus Mainframe 11688 | -5/Cetus | Entered Archives 11688 | -5/Archives | Accompanied by 11 allies (A7) 11693 | -5/Archives | Received a hacking code to weaken MAIN.C 11725 | -5/Archives | Discovered new exit (range 16) 11734 | -5/Archives | Discovered new exit (range 15) 11755 | -5/Archives | Discovered new exit (range 16) 11799 | -5/Archives | Entered Hub_04(d) 11799 | -5/Hub_04(d) | Accompanied by 10 allies 11809 | -5/Hub_04(d) | Build established: Commander-Construct 11841 | -5/Hub_04(d) | Identified exit to Garrison 11853 | -5/Hub_04(d) | Entered Garrison 11853 | -5/Garrison | Accompanied by 9 allies 11863 | -5/Garrison | Triggered checkpoint 11977 | -5/Garrison | Triggered checkpoint 11979 | -5/Garrison | Spotted B-75 Beast 11987 | -5/Garrison | Destroyed B-75 Beast 12003 | -5/Garrison | Triggered checkpoint 12015 | -5/Garrison | Lost 5 allies 12128 | -5/Garrison | Discovered new exit (range 14) 12203 | -5/Garrison | Triggered checkpoint 12216 | -5/Garrison | Garrison Relay disabled 12290 | -5/Garrison | Build established: Construct 12389 | -5/Garrison | Lost 3 allies 12727 | -5/Garrison | Triggered checkpoint 12743 | -5/Garrison | Garrison Relay disabled 12855 | -5/Garrison | Triggered checkpoint 12869 | -5/Garrison | Discovered new exit (range 13) 12915 | -5/Garrison | Triggered checkpoint 12960 | -5/Garrison | Discovered new exit (range 14) 12987 | -5/Garrison | Triggered checkpoint 13008 | -5/Garrison | Core integrity fell below 50% 13128 | -5/Garrison | Garrison Relay disabled 13311 | -5/Garrison | Entered Factory 13311 | -4/Factory | Accompanied by 3 allies 13311 | -4/Factory | Evolved 2 slots: Power x1, Propulsion x1 13529 | -4/Factory | Discovered new exit (range 5) 13550 | -4/Factory | Entered Upper Caves 13576 | -4/Upper Caves | Attracted the attention of an 0b10 checkpoint 13600 | -4/Upper Caves | Core integrity fell below 50% 13624 | -4/Upper Caves | Met a Warlord Commander 13625 | -4/Upper Caves | Learned location of Warlord (-4) 13626 | -4/Upper Caves | Warlord Commander delivered Encrypted Comm Array 13626 | -4/Upper Caves | Found Encrypted Comm Array 13731 | -4/Upper Caves | Attacked by a delusional Derelict stockpiling parts 13824 | -4/Upper Caves | Acquired the password to a Derelict Tinkerer's latest research 13961 | -4/Upper Caves | Caught by Unaware searching for contraband prototypes 14270 | -4/Upper Caves | Learned Research emergency access door positions 14281 | -4/Upper Caves | Lost 3 parts (1u2w) 14308 | -4/Upper Caves | Caught by Unaware searching for contraband prototypes 14576 | -4/Upper Caves | Discovered new exit (range 12) 14684 | -4/Upper Caves | Entered another Upper Caves area 14835 | -4/Upper Caves | Discovered new exit (range 8) 15111 | -4/Upper Caves | Attracted the attention of an 0b10 outpost 15124 | -4/Upper Caves | Core integrity fell below 20% 15145 | -4/Upper Caves | Attracted the attention of an 0b10 checkpoint 15196 | -4/Upper Caves | Lost 6 parts (1p2n2u1w) 15198 | -4/Upper Caves | Discovered new exit (range 12) 15211 | -4/Upper Caves | Entered Warlord 15251 | -4/Warlord | System corruption cleaned by Quarantine Array 15358 | -4/Warlord | Met Warlord 15383 | -4/Warlord | Warlord's base attacked by MAIN.C 15426 | -4/Warlord | Build established: Mutant 15511 | -4/Warlord | Found Prototype Device 15512 | -4/Warlord | Identified Minesniffer Drone Bay 15573 | -4/Warlord | Found Prototype Energy Gun 15578 | -4/Warlord | Found Prototype Energy Gun 15581 | -4/Warlord | Found Prototype Energy Gun 15701 | -4/Warlord | Warlord forces counterattacked 15721 | -4/Warlord | Spotted Striker 15737 | -4/Warlord | Destroyed Striker 15781 | -4/Warlord | Lost 13 allies 15824 | -4/Warlord | Spotted Executioner 15840 | -4/Warlord | Spotted Executioner 15857 | -4/Warlord | Discovered new exit (range 14) 15872 | -4/Warlord | Lost 5 allies 15883 | -4/Warlord | Spotted Executioner 15891 | -4/Warlord | Entered Proximity Caves 15937 | -3/Proximity Caves | Spotter reported a threat 16006 | -3/Proximity Caves | Identified Vortex Rifle 16037 | -3/Proximity Caves | Attracted the attention of an 0b10 checkpoint 16163 | -3/Proximity Caves | Attacked by a faux Warlord 16318 | -3/Proximity Caves | Discovered new exit (range 5) 16326 | -3/Proximity Caves | Entered Research 16326 | -3/Research | Evolved 2 slots: Power x1, Utility x1 16526 | -3/Research | Revision forces began assault on 0b10 16710 | -3/Research | Met up with Revision 17++ 16725 | -3/Research | Build established: Generator-Mutant 16914 | -3/Research | Spotted B-86 Titan 16927 | -3/Research | Spotted B-86 Titan 16947 | -3/Research | Found Hvy. Reflective Plating 17026 | -3/Research | Research terminal network offline 17198 | -3/Research | Discovered new exit (range 12) 17241 | -3/Research | Found Powered Armor 17528 | -3/Research | Entered Quarantine 17580 | -3/Quarantine | Found Alien Artifact 17586 | -3/Quarantine | Identified Phase Armor 17616 | -3/Quarantine | Cryocooling Duct disabled 17631 | -3/Quarantine | Ambient heat levels rising (+20) 17631 | -3/Quarantine | Non-combat units ordered to evacuate 17644 | -3/Quarantine | Found Alien Artifact 17644 | -3/Quarantine | Identified Terrabomb 17644 | -3/Quarantine | Used Terrabomb 17662 | -3/Quarantine | Found Terrabomb 17812 | -3/Quarantine | Met incapacitated Sigix Warrior 17812 | -3/Quarantine | Lockdown squad dispatched 17817 | -3/Quarantine | Acquired the access code to the Sigix quarantine chamber 17819 | -3/Quarantine | Unlocked Sigix quarantine chamber 17830 | -3/Quarantine | Found Sigix Containment Pod 17857 | -3/Quarantine | Spotted Lightning 17866 | -3/Quarantine | Spotted Lightning 17867 | -3/Quarantine | Spotted Lightning 17878 | -3/Quarantine | System corruption reached 10% 17928 | -3/Quarantine | System corruption reached 30% 17944 | -3/Quarantine | Destroyed Lightning 17948 | -3/Quarantine | Core integrity fell below 50% 17977 | -3/Quarantine | Lost 4 parts (3u1w) 17977 | -3/Quarantine | Destroyed Lightning 18010 | -3/Quarantine | Destroyed Lightning 18209 | -3/Quarantine | Found Alien Artifact 18209 | -3/Quarantine | Identified Core Reset Matrix 18209 | -3/Quarantine | Used Core Reset Matrix 18213 | -3/Quarantine | Sensed 11 artifacts in vicinity 18216 | -3/Quarantine | Used Terrabomb 18252 | -3/Quarantine | Found Hpw. Transdimensional Reconstructor 18252 | -3/Quarantine | Warped through subspace 18283 | -3/Quarantine | Build established: Generator-Construct 18359 | -3/Quarantine | Identified exit to Garrison 18359 | -3/Quarantine | Entered Garrison 18367 | -3/Garrison | Garrison Relay disabled 18399 | -3/Garrison | Triggered checkpoint 18418 | -3/Garrison | Core integrity fell below 20% 18421 | -3/Garrison | Core destroyed Last Messages --------------- 18407_ Unknown Flight Unit fried. 18407_ S-43 Plague destroyed. 18410_ Lyr. Medium Armor Plating destroyed. 18411_ Acquired 40 matter. 18412_ Adv. Heat Sink broken. 18412_ Overheating: Short circuit. 18413_ Imp. Weapon Shielding destroyed. 18414_ Imp. Cooling System destroyed. 18419_ Power failure, Antimatter-Quantum Reactor shutdown. 18419_ Overheating: Core damaged (-195). 18419_ 4I|QYOIV0IOE5UM, 18420_ Scrap Engine modifies Hvy. Charged Hardcell Construct/C: Max Damage -12, Range +2 Renamed Hvy. Laser Plasma Construct/C. 18420_ Imp. Weapon Cycler broken. 18420_ Overheating: Short circuit. 18420_ Critical hit (Burn: +37). 18421_ Overheating: Core damaged (-260). Map ----- +----------------------------------------------------+ | ???????????????????????????????????????????? | | ???????????????????????????????????????????? | | ???????????????????????????????????????????? | | ???????????????????????????????????????????? | | ???????????????????????????????????????????? | | ???????????????????????????????????????????? | | ???????????????????????????????????????????? | | ???????????????????????????????????????????? | | ???????????????????????????????????????????? | | ???????????????????????????????????????????? | | ???????????????????????????????????????????? | | ???????????????????????????????????????????? | | ???????????????????????????????????????????? | | ???????????????????????????????????????????? | | ???????????????????????????????????????????? | | ???????????????????????????????????????????? | | ???????????????????????????????????????????? | | ???????????????????????????????????????????? | | ???????????????????????????????????????????? | | ???????????????????????????????????????????? | | ????????????#######################????????? | | ???????????? #????????? | | ???????????? #????????? | | ???????????? #????????? | | ????????????????#########ss#### #????????? | | ????????????????????????#@ #??# ########?? | | ????????????????#########gg#??# ##" """#?? | | ????????? =s#??# !!! #?? | | ????????? #??# # "#?? | | ??????????# ##### ###;##??# ## "#?? | | ??????????????????# ???###???# ##"" ""#?? | | ??????????????????##??????????# ########?? | | ??????????????????????????????# #????????? | | ??????????????????????????????# #????????? | | ??????????????????????????????# #????????? | | ??????????????????????????????#####????????? | | ???????????????????????????????????????????? | | ???????????????????????????????????????????? | | ???????????????????????????????????????????? | | ???????????????????????????????????????????? | | ???????????????????????????????????????????? | | ???????????????????????????????????????????? | | ???????????????????????????????????????????? | | ???????????????????????????????????????????? | | ???????????????????????????????????????????? | | ???????????????????????????????????????????? | | | | | | | | | +----------------------------------------------------+ Best States ------------- Heat Dissipation 104 Coolant Potential 50 Energy Generation 87 Energy Capacity 1048 Matter Stores 300 Matter Capacity 450 Sight Range 16 Robot Scan Range 16 Terrain Scan Range 16 Terrain Scan Density 10 Jamming Range 14 Base Temperature (-) 100 Armor Coverage 860 Resistance: TH 25 Weapon Shielding 66 Weapon Cycling 20 Phase Shifting 10 Evasion (%) 61 Targeting Accuracy 8 Recoil Reduction 5 Item Schematics ----------------- None Robot Schematics ------------------ None Fabricated ------------ Nothing Repaired ---------- Nothing Studied --------- None Alien Tech Used ----------------- Phase Armor Terrabomb Core Reset Matrix High-powered Transdimensional Reconstructor Achievements -------------- I Like You, Cogmind Irresistible Scrap Stay Cool Under Fire Challenges ------------ None Game ------ Seed LaserBlinkDisintegrator Manual? 0 Play Time 04:54:28 Cumulative 176.1 hours Start 2026.03.28 @ 02:23:20 End 2026.03.30 @ 01:02:33 Sessions 16 Manual Loads 0 Difficulty Rogue Special Mode None Game No. 70 Rogue 70 Adventurer 0 Explorer 0 Win Type - Total 4 Types 2/0/0/2/0/0/0/0/0/0 Lore% 39 Gallery% 54 Achievement% 46 Wizard Run 0 Options --------- Layout 2 ASCII 0 Keyboard 1 Movement Numpad Keybinds 0 Fullscreen 2 Font 24/Smallcaps Map View 50x44 Zoom Use 0% Tactical HUD 1 Map Filters NONE Filters NONE Steam 1 RUN: 1237a8a8-4619-48ff-9bfb-c3239f3a91f6